bitfinex/quotes_SOLUSD_20240711
["timestamp","ask_amount","ask_price","bid_price","bid_amount"]
[1720721486682,7.2176,138.55,138.51,7.2195]
[1720721488380,7.53795263,138.57,138.56,7.217]
[1720721488695,7.215,138.6,138.55,7.2172]
[1720721488860,7.215,138.6,138.56,7.217]
[1720721489065,7.215,138.6,138.55,7.2174]
[1720721490096,7.216,138.58,138.54,25.2619]
[1720721490659,15.4193,138.59,138.54,25.2619]
[1720721490660,22.635,138.59,138.54,25.2619]
[1720721490883,15.4193,138.59,138.55,7.2174]
[1720721491682,22.6348,138.59,138.55,7.2174]
[1720721491875,22.6348,138.59,138.54,25.262]
[1720721492075,7.2161,138.58,138.54,18.044]
[1720721492269,7.2161,138.58,138.54,25.262]
[1720721492470,22.6349,138.59,138.54,25.262]
[1720721492664,15.4193,138.59,138.55,7.2174]
[1720721493676,15.4193,138.59,138.54,18.044]
[1720721493677,15.4193,138.59,138.56,7.2167]
[1720721493989,14.75967717,138.61,138.56,7.2167]
[1720721494165,20.0,138.6,138.57,7.2164]
[1720721495867,20.0,138.6,138.56,25.2592]
[1720721497783,27.215,138.6,138.56,25.2592]
[1720721498592,27.215,138.6,138.56,18.0423]
[1720721499467,27.215,138.6,138.56,25.2593]
[1720721500994,20.0,138.59,138.56,25.2593]
[1720721501995,20.0,138.59,138.56,18.0423]
[1720721502372,20.0,138.59,138.56,25.2593]
[1720721502582,7.54507717,138.61,138.57,0.34]
[1720721502902,7.2133,138.64,138.59,7.2154]
[1720721503070,7.54751538,138.63,138.59,7.2154]
[1720721505377,14.76091538,138.63,138.59,7.2154]
[1720721505581,14.76091538,138.63,138.58,25.2555]
[1720721506908,7.2144,138.62,138.58,18.0397]
[1720721507500,7.2145,138.61,138.58,18.0397]
[1720721508196,7.2145,138.61,138.56,7.2168]
[1720721508978,7.2145,138.61,138.57,7.2163]
[1720721509399,7.2141,138.62,138.57,25.2576]
[1720721511099,35.63751538,138.63,138.58,7.216]
[1720721511395,35.63751538,138.63,138.59,7.2155]
[1720721511396,20.0,138.62,138.59,7.2155]
[1720721511785,20.0,138.62,138.58,7.2159]
[1720721511989,20.0,138.62,138.57,18.2113]
[1720721512184,7.2148,138.61,138.57,18.0413]
[1720721512391,27.2141,138.62,138.57,25.2574]
[1720721512594,27.2141,138.62,138.58,7.216]
[1720721513602,7.2145,138.61,138.57,18.0413]
[1720721514000,7.2151,138.6,138.56,7.2166]
[1720721514204,7.2155,138.59,138.55,7.3874]
[1720721514380,7.2155,138.59,138.55,7.2174]
[1720721514993,7.2152,138.6,138.55,7.2174]
[1720721515191,7.2152,138.6,138.56,7.217]
[1720721516489,35.3044,138.62,138.58,7.216]
[1720721516689,20.0,138.61,138.58,7.216]
[1720721516889,20.0,138.61,138.59,7.2153]
[1720721517200,20.0,138.61,138.58,25.2559]
[1720721517497,20.0,138.62,138.58,25.2559]
[1720721517997,7.54792342,138.63,138.62,7.2139]
[1720721518205,28.09,138.72,138.64,7.2128]
[1720721518383,28.09,138.72,138.63,18.0333]
[1720721518697,7.2108,138.68,138.63,18.0333]
[1720721519191,7.2108,138.68,138.63,25.2465]
[1720721519404,7.2113,138.67,138.63,25.2465]
[1720721520201,7.2119,138.66,138.62,7.2137]
[1720721520504,7.2115,138.67,138.62,7.2137]
[1720721521383,42.84659081,138.66,138.61,7.2143]
[1720721521695,62.84659081,138.66,138.61,7.2141]
[1720721521933,27.54459081,138.66,138.62,18.0342]
[1720721522082,27.54459081,138.66,138.64,7.2128]
[1720721522706,27.54459081,138.66,138.63,7.2132]
[1720721522878,34.75659081,138.66,138.62,18.0342]
[1720721523079,34.75659081,138.66,138.6,7.2146]
[1720721523080,7.2124,138.65,138.6,7.2146]
[1720721524306,28.09,138.64,138.59,25.2533]
[1720721524506,35.303,138.64,138.59,25.2533]
[1720721525486,27.2135,138.63,138.59,18.038]
[1720721525990,28.09,138.62,138.59,18.038]
[1720721527305,35.3043,138.62,138.57,7.2165]
[1720721527493,7.2146,138.61,138.57,7.2165]
[1720721527698,22.5474,138.61,138.57,7.2165]
[1720721528290,15.3328,138.61,138.57,7.2165]
[1720721529912,22.5474,138.61,138.57,7.2165]
[1720721530417,7.2156,138.59,138.54,7.2177]
[1720721530704,35.3062,138.58,138.53,25.2638]
[1720721531011,29.37319646,138.57,138.54,7.218]
[1720721531209,20.0,138.57,138.54,7.218]
[1720721531406,15.3328,138.61,138.55,18.0431]
[1720721531612,37.46452423,138.6,138.56,7.217]
[1720721531810,29.37452423,138.59,138.56,7.217]
[1720721531997,20.0,138.59,138.56,7.217]
[1720721532198,20.0,138.59,138.55,18.0431]
[1720721532199,20.0,138.59,138.55,25.2605]
[1720721532400,27.2156,138.59,138.55,18.0431]
[1720721532715,20.0,138.59,138.55,25.2606]
[1720721532893,35.64147862,138.6,138.56,7.217]
[1720721533908,42.85647862,138.6,138.56,7.217]
[1720721534292,9.37713488,138.59,138.56,7.217]
[1720721534516,42.85647862,138.6,138.56,7.217]
[1720721534815,14.04,138.57,138.56,7.217]
[1720721535588,7.55147862,138.6,138.56,7.217]
[1720721535807,14.04,138.57,138.56,7.217]
[1720721535995,63.71147862,138.6,138.55,18.0431]
[1720721536317,14.04,138.56,138.53,7.2185]
[1720721536614,14.04,138.54,138.53,7.2185]
[1720721536800,63.71147862,138.6,138.54,7.2179]
[1720721536801,7.2155,138.59,138.54,7.2179]
[1720721537010,14.04,138.55,138.54,7.2179]
[1720721538209,14.04,138.55,138.53,7.2184]
[1720721538411,63.71147862,138.6,138.53,7.2184]
[1720721538412,14.04,138.54,138.53,7.2184]
[1720721538802,14.04,138.54,138.52,25.266]
[1720721539103,14.04,138.53,138.52,25.266]
[1720721539307,14.04,138.54,138.53,7.2186]
[1720721539612,7.2156,138.59,138.54,7.2178]
[1720721539817,14.04,138.55,138.52,18.047]
[1720721539995,14.04,138.54,138.52,25.2658]
[1720721540687,14.04,138.54,138.52,18.047]
[1720721540889,14.04,138.54,138.53,7.2186]
[1720721541107,14.04,138.54,138.52,25.2659]
[1720721541311,14.04,138.53,138.52,25.2659]
[1720721543822,14.04,138.53,138.52,18.047]
[1720721544802,35.2987,138.53,138.49,18.0507]
[1720721545124,14.04,138.5,138.46,18.0553]
[1720721545298,14.04,138.48,138.47,7.2217]
[1720721546506,14.04,138.48,138.46,25.2775]
[1720721546705,14.04,138.47,138.46,25.2775]
[1720721547904,14.04,138.47,138.46,70.2775]
[1720721548105,7.2187,138.53,138.48,7.2208]
[1720721548309,20.0,138.52,138.48,7.2208]
[1720721548518,20.0,138.52,138.49,7.2205]
[1720721548695,14.04,138.51,138.49,7.2205]
[1720721549110,14.04,138.51,138.48,25.2733]
[1720721549313,14.04,138.5,138.48,25.2733]
[1720721550108,21.2588,138.53,138.48,25.2733]
[1720721550426,14.04,138.49,138.47,7.2217]
[1720721551018,14.04,138.49,138.48,7.2212]
[1720721551217,7.2187,138.53,138.48,7.2212]
[1720721551416,14.04,138.5,138.49,7.2207]
[1720721553019,14.04,138.5,138.48,7.2211]
[1720721553219,7.2198,138.51,138.47,25.2759]
[1720721553423,14.04,138.48,138.47,25.2759]
[1720721553927,14.04,138.48,138.44,25.2811]
[1720721554123,14.04,138.46,138.45,7.2228]
[1720721554320,14.04,138.47,138.45,7.2228]
[1720721554514,14.04,138.47,138.46,7.2223]
[1720721554702,14.04,138.48,138.46,7.2223]
[1720721554907,14.04,138.48,138.47,7.2217]
[1720721555108,14.04,138.49,138.47,7.2217]
[1720721555408,14.04,138.5,138.48,7.2212]
[1720721558004,63.70885507,138.53,138.49,52.2207]
[1720721558212,14.04,138.51,138.49,52.2207]
[1720721559009,14.04,138.5,138.49,45.0]
[1720721559225,22.84929715,138.55,138.49,45.0]
[1720721559443,7.2188,138.53,138.49,52.2207]
[1720721559629,14.04,138.5,138.49,52.2207]
[1720721559826,14.04,138.51,138.49,52.2207]
[1720721560136,14.04,138.51,138.49,53.66233627]
[1720721560309,14.04,138.52,138.5,7.2202]
[1720721561239,14.04,138.52,138.49,53.66213627]
[1720721561612,27.2181,138.54,138.5,7.2202]
[1720721561949,14.04,138.52,138.49,52.5606]
[1720721562137,14.04,138.51,138.49,52.3906]
[1720721562446,14.04,138.5,138.49,45.0]
[1720721562945,14.04,138.51,138.49,45.0]
[1720721565847,14.04,138.52,138.49,52.2205]
[1720721568050,14.04,138.52,138.5,7.22]
[1720721568243,22.84929715,138.55,138.51,7.2192]
[1720721568548,7.54809715,138.55,138.54,7.2181]
[1720721568754,15.6663,138.59,138.54,7.2181]
[1720721568755,14.04,138.57,138.54,7.2181]
[1720721570140,7.5452911,138.58,138.55,7.2171]
[1720721570342,7.5452911,138.58,138.56,45.34]
[1720721570541,7.5452911,138.58,138.56,0.34]
[1720721570745,14.04,138.59,138.56,0.34]
[1720721571626,14.04,138.59,138.55,52.2174]
[1720721572649,14.04,138.58,138.55,52.2174]
[1720721573949,14.04,138.59,138.56,18.0423]
[1720721574328,14.04,138.58,138.55,52.2175]
[1720721575148,14.04,138.59,138.55,52.2175]
[1720721577345,14.04,138.58,138.55,52.2175]
[1720721577645,14.04,138.59,138.55,52.2174]
[1720721577848,14.04,138.59,138.55,70.2613]
[1720721578053,7.54392457,138.6,138.56,14.21]
[1720721578428,7.54392457,138.6,138.58,7.2156]
[1720721578626,7.2131,138.64,138.59,7.2151]
[1720721578934,9.39699122,138.63,138.6,52.5545]
[1720721579229,9.39699122,138.62,138.61,7.2144]
[1720721579441,21.58187931,138.64,138.61,7.3844]
[1720721579626,21.58187931,138.64,138.61,7.2144]
[1720721580254,21.58187931,138.64,138.6,45.34]
[1720721580255,28.79487931,138.64,138.6,52.5548]
[1720721581453,7.2135,138.63,138.6,45.34]
[1720721581635,21.2535,138.63,138.6,45.34]
[1720721582548,21.2535,138.63,138.58,14.04]
[1720721582549,7.214,138.62,138.58,7.2159]
[1720721582855,14.04,138.62,138.59,7.2154]
[1720721583147,21.2536,138.63,138.59,7.2154]
[1720721583348,14.75497931,138.64,138.6,7.2149]
[1720721583651,14.04,138.63,138.6,7.3849]
[1720721584032,21.58187931,138.64,138.61,7.2142]
[1720721585035,7.54187931,138.64,138.61,7.2142]
[1720721585236,21.2524,138.65,138.61,7.2142]
[1720721585553,21.2524,138.65,138.62,1.44254316]
[1720721587643,21.2524,138.65,138.61,46.44254316]
[1720721589360,21.253,138.64,138.61,45.0]
[1720721589544,14.04,138.64,138.61,45.0]
[1720721589737,21.2529,138.64,138.61,45.0]
[1720721590553,14.04,138.64,138.61,45.0]
[1720721591435,14.04,138.64,138.61,52.2144]
[1720721591854,14.04,138.65,138.61,52.2144]
[1720721594354,7.2122,138.66,138.62,7.2139]
[1720721594557,14.04,138.65,138.61,7.2142]
[1720721594754,21.2525,138.65,138.61,7.2142]
[1720721594938,14.04,138.65,138.61,7.2142]
[1720721595144,14.04,138.65,138.62,52.2137]
[1720721595450,21.252,138.66,138.62,52.2137]
[1720721596033,21.252,138.66,138.62,45.0]
[1720721596252,14.04,138.65,138.62,45.0]
[1720721596639,14.04,138.64,138.62,45.0]
[1720721597648,14.04,138.65,138.62,45.0]
[1720721598156,14.04,138.65,138.63,1.44248383]
[1720721598560,7.54023373,138.66,138.63,1.44248383]
[1720721599071,7.54023373,138.66,138.64,7.2128]
[1720721599881,21.2511,138.68,138.65,1.44227575]
[1720721600965,7.54013355,138.69,138.65,1.44227575]
[1720721600966,28.79063355,138.69,138.65,1.44227575]
[1720721601141,7.54013355,138.69,138.65,15.48227575]
[1720721601341,21.58013355,138.69,138.65,8.65447575]
[1720721601641,7.54013355,138.69,138.65,8.65447575]
[1720721601840,28.79053355,138.69,138.65,8.65447575]
[1720721602675,14.75053355,138.69,138.65,22.69447575]
[1720721604076,14.75053355,138.69,138.66,45.0]
[1720721604277,7.54013355,138.69,138.66,45.0]
[1720721604575,14.75043355,138.69,138.66,45.0]
[1720721604775,28.79043355,138.69,138.66,45.0]
[1720721605667,28.79043355,138.69,138.65,7.2122]
[1720721605881,14.04,138.68,138.65,7.2122]
[1720721606055,14.04,138.68,138.64,25.5849]
[1720721606254,14.04,138.68,138.65,45.34]
[1720721606865,28.79043355,138.69,138.65,52.5522]
[1720721607074,7.54013355,138.69,138.66,7.2118]
[1720721607368,21.58013355,138.69,138.66,7.2118]
[1720721608785,28.79043355,138.69,138.65,52.5523]
[1720721609287,21.58013355,138.69,138.65,52.5523]
[1720721609571,21.58013355,138.69,138.66,7.2117]
[1720721610579,7.54013355,138.69,138.66,7.2117]
[1720721611380,28.79053355,138.69,138.65,52.5522]
[1720721611990,14.04,138.68,138.65,52.2122]
[1720721612164,14.04,138.68,138.65,45.0]
[1720721612988,7.2108,138.68,138.64,18.0322]
[1720721613158,14.04,138.66,138.64,18.0322]
[1720721613668,14.04,138.66,138.64,25.245]
[1720721613862,14.04,138.67,138.64,25.245]
[1720721614684,14.04,138.67,138.65,7.2122]
[1720721614882,14.04,138.68,138.65,7.2122]
[1720721615081,14.04,138.67,138.65,7.2122]
[1720721616368,14.04,138.68,138.65,7.2122]
[1720721616564,7.54013355,138.69,138.65,7.2122]
[1720721616759,14.04,138.68,138.65,7.2122]
[1720721618396,14.04,138.68,138.66,7.2117]
[1720721620363,21.58013355,138.69,138.67,7.2113]
[1720721621696,7.54013355,138.69,138.67,7.2113]
[1720721622385,7.54013355,138.69,138.68,7.2108]
[1720721625585,14.8621755,138.7,138.68,7.2108]
[1720721626578,0.8221755,138.7,138.68,7.2108]
[1720721626890,0.8221755,138.7,138.69,1.44134456]
[1720721627391,0.8221755,138.7,138.68,1.44134456]
[1720721629292,0.8221755,138.7,138.68,25.2375]
[1720721629472,0.8221755,138.7,138.68,18.0269]
[1720721630289,0.8221755,138.7,138.69,27.4119]
[1720721630498,0.8221755,138.7,138.69,72.7519]
[1720721633471,0.8221755,138.7,138.69,52.5503]
[1720721635385,0.8221755,138.7,138.69,52.2103]
[1720721635585,0.8221755,138.7,138.69,7.2103]
[1720721641980,0.8221755,138.7,138.69,21.5903]
[1720721642179,0.8221755,138.7,138.69,66.5903]
[1720721649797,0.8221755,138.7,138.69,88.9001]
[1720721650886,0.8221755,138.7,138.69,210.6601]
[1720721651420,21.2446,138.8,138.76,7.2065]
[1720721651716,13.9201472,138.81,138.74,14.04]
[1720721651717,7.2056,138.78,138.74,14.04]
[1720721651920,7.2052,138.79,138.75,45.34]
[1720721652101,14.04,138.79,138.75,52.2067]
[1720721652706,21.2451,138.79,138.75,52.2067]
[1720721653786,21.2456,138.78,138.74,18.0189]
[1720721654003,14.04,138.78,138.74,25.2265]
[1720721654319,14.04,138.78,138.75,7.2071]
[1720721654901,14.04,138.78,138.74,25.2264]
[1720721655090,14.04,138.78,138.75,7.2071]
[1720721655297,21.2453,138.79,138.75,7.2071]
[1720721658101,21.2456,138.78,138.74,25.2265]
[1720721658296,14.04,138.77,138.74,25.2265]
[1720721658511,14.04,138.8,138.77,7.2058]
[1720721658694,20.0,138.79,138.77,7.2058]
[1720721659717,20.0,138.79,138.76,25.2222]
[1720721661320,20.0,138.79,138.75,59.38]
[1720721661701,20.0,138.79,138.76,7.2063]
[1720721663996,20.0,138.79,138.77,7.2061]
[1720721664827,20.0,138.79,138.76,7.2064]
[1720721665411,21.5605472,138.81,138.77,25.3914]
[1720721665612,20.0,138.8,138.78,7.2055]
[1720721666011,7.5205472,138.81,138.78,7.2055]
[1720721666316,21.5605472,138.81,138.77,25.3913]
[1720721667823,28.7646472,138.81,138.77,25.3913]
[1720721668418,14.04,138.8,138.77,25.3913]
[1720721669311,28.7646472,138.81,138.77,25.3913]
[1720721669507,14.7246472,138.81,138.77,25.3913]
[1720721669708,28.7646472,138.81,138.77,25.3913]
[1720721672827,14.7246472,138.81,138.77,25.3913]
[1720721673125,28.7646472,138.81,138.77,25.3913]
[1720721673729,7.5205472,138.81,138.78,7.2054]
[1720721674032,7.2034,138.83,138.79,45.0]
[1720721674211,7.2034,138.83,138.78,21.2454]
[1720721674212,14.04,138.81,138.78,7.2054]
[1720721675607,7.2036,138.82,138.78,7.2054]
[1720721676012,14.04,138.82,138.79,7.205]
[1720721678124,8.3372296,138.84,138.79,7.205]
[1720721678125,8.3372296,138.84,138.81,7.2039]
[1720721678333,34.04,138.83,138.79,18.0125]
[1720721678519,34.04,138.83,138.8,7.2044]
[1720721679513,20.0,138.83,138.8,7.2044]
[1720721679713,34.04,138.83,138.8,7.2044]
[1720721680115,20.0,138.83,138.81,7.2039]
[1720721680917,8.3372296,138.84,138.81,7.2039]
[1720721681128,0.8221755,138.84,138.82,7.2035]
[1720721681835,0.8221755,138.84,138.81,7.2039]
[1720721682037,0.8221755,138.84,138.82,7.2035]
[1720721682631,0.8221755,138.84,138.81,25.2138]
[1720721683019,0.8221755,138.84,138.81,18.0099]
[1720721683424,0.8221755,138.84,138.82,45.0]
[1720721684324,0.8221755,138.84,138.82,52.2035]
[1720721684824,0.8221755,138.84,138.81,25.2139]
[1720721685014,14.8621755,138.84,138.81,25.2139]
[1720721685220,14.04,138.83,138.81,25.2139]
[1720721685629,14.8621755,138.84,138.81,25.2139]
[1720721687639,0.8221755,138.84,138.81,18.0099]
[1720721687842,0.8221755,138.84,138.82,45.0]
[1720721688047,0.8221755,138.84,138.82,52.2034]
[1720721688546,0.8221755,138.84,138.83,7.203]
[1720721688847,0.8221755,138.84,138.83,52.203]
[1720721690023,0.8221755,138.84,138.83,45.0]
[1720721691340,0.8221755,138.84,138.83,52.203]
[1720721691930,0.8221755,138.84,138.83,52.373]
[1720721692143,0.8221755,138.84,138.83,52.543]
[1720721693734,0.8221755,138.84,138.83,45.34]
[1720721694250,0.8221755,138.84,138.83,0.34]
[1720721695740,0.8221755,138.84,138.83,7.543]
[1720721695957,0.8221755,138.84,138.83,52.543]
[1720721696238,0.8221755,138.84,138.83,45.34]
[1720721696951,0.8221755,138.84,138.82,45.0]
[1720721697850,0.8221755,138.84,138.82,52.2034]
[1720721698754,14.8621755,138.84,138.81,25.5538]
[1720721699043,14.04,138.83,138.81,18.0099]
[1720721699565,14.04,138.83,138.79,7.2049]
[1720721699566,14.04,138.82,138.79,7.2049]
[1720721700058,21.2436,138.82,138.78,25.2189]
[1720721700352,14.04,138.81,138.78,25.2189]
[1720721700528,0.8221755,138.84,138.79,7.205]
[1720721700529,8.0248755,138.84,138.79,7.205]
[1720721700727,14.04,138.82,138.79,7.205]
[1720721700942,14.04,138.81,138.79,7.205]
[1720721701137,14.04,138.81,138.78,25.2189]
[1720721701636,14.04,138.82,138.78,18.0134]
[1720721701832,29.1383,138.83,138.78,32.0534]
[1720721702046,0.8221755,138.84,138.82,7.2032]
[1720721702268,20.8221755,138.84,138.83,7.203]
[1720721702555,0.8221755,138.84,138.83,7.203]
[1720721702855,14.8621755,138.84,138.79,18.1819]
[1720721703149,14.04,138.83,138.81,7.2037]
[1720721703353,0.8221755,138.84,138.81,7.2037]
[1720721703535,0.8221755,138.84,138.81,25.2138]
[1720721703740,14.04,138.83,138.82,7.2035]
[1720721704127,14.04,138.83,138.81,25.2138]
[1720721704434,21.2438,138.82,138.78,18.0129]
[1720721704663,14.04,138.8,138.78,25.2182]
[1720721704825,14.04,138.8,138.77,7.2061]
[1720721705155,14.04,138.78,138.76,7.2063]
[1720721707164,14.04,138.78,138.77,7.2061]
[1720721707334,14.04,138.79,138.77,7.2061]
[1720721707736,14.04,138.79,138.77,25.2213]
[1720721708150,7.2042,138.81,138.77,25.2213]
[1720721708363,14.04,138.79,138.77,25.2213]
[1720721708848,14.04,138.79,138.74,14.04]
[1720721708849,14.04,138.79,138.74,32.0582]
[1720721709049,14.04,138.78,138.75,52.2068]
[1720721709247,14.04,138.78,138.76,7.2065]
[1720721709574,14.04,138.77,138.73,7.2078]
[1720721709745,14.04,138.75,138.7,50.0873]
[1720721710157,14.04,138.75,138.74,7.2077]
[1720721710352,16.3829,138.78,138.73,18.0203]
[1720721710556,14.04,138.77,138.75,7.2068]
[1720721710758,30.4229,138.78,138.75,7.2068]
[1720721711144,14.04,138.77,138.75,7.2068]
[1720721711957,16.3829,138.78,138.75,7.2068]
[1720721712157,14.04,138.77,138.75,7.2068]
[1720721713461,14.04,138.77,138.74,7.2075]
[1720721713942,14.04,138.77,138.73,18.0203]
[1720721714246,14.04,138.77,138.75,7.2071]
[1720721714763,14.04,138.76,138.74,7.2076]
[1720721716267,14.04,138.77,138.74,7.2076]
[1720721717166,14.04,138.76,138.74,7.2076]
[1720721717366,14.04,138.76,138.73,25.2284]
[1720721717669,14.04,138.76,138.74,7.2076]
[1720721718058,14.04,138.76,138.75,7.2072]
[1720721718263,14.04,138.77,138.75,7.2072]
[1720721719263,14.04,138.77,138.74,7.2076]
[1720721719474,14.04,138.77,138.7,36.0473]
[1720721719475,14.04,138.75,138.7,54.0709]
[1720721719764,14.04,138.74,138.73,7.2082]
[1720721720066,14.04,138.75,138.73,7.2082]
[1720721720658,7.53392438,138.77,138.74,7.2077]
[1720721720954,14.04,138.76,138.74,7.2077]
[1720721721273,7.53392438,138.77,138.74,7.2077]
[1720721721573,14.04,138.76,138.74,7.2077]
[1720721722147,14.04,138.76,138.72,18.0213]
[1720721722355,14.04,138.76,138.72,25.2295]
[1720721722775,14.04,138.76,138.73,7.208]
[1720721723149,14.04,138.74,138.72,25.2298]
[1720721723349,14.04,138.73,138.72,18.0213]
[1720721724159,14.04,138.73,138.72,25.23]
[1720721727065,14.04,138.75,138.72,18.0213]
[1720721727256,7.53392438,138.77,138.72,18.0213]
[1720721727257,14.04,138.76,138.72,18.0213]
[1720721727458,14.04,138.76,138.74,7.2074]
[1720721727664,14.04,138.75,138.73,7.208]
[1720721728258,14.04,138.74,138.72,25.2299]
[1720721728774,14.04,138.73,138.72,18.0213]
[1720721729694,14.04,138.73,138.72,25.23]
[1720721734368,21.58695944,138.74,138.72,25.23]
[1720721735489,21.58695944,138.74,138.73,7.2082]
[1720721735789,7.54695944,138.74,138.73,7.2082]
[1720721735954,14.04,138.76,138.74,25.2264]
[1720721736160,20.0,138.75,138.74,25.2264]
[1720721737060,34.04,138.75,138.74,18.0192]
[1720721737471,14.04,138.75,138.74,7.2077]
[1720721738073,14.04,138.75,138.73,25.2285]
[1720721739366,7.5453079,138.77,138.76,25.2233]
[1720721739596,14.04,138.79,138.76,25.2233]
[1720721739779,21.58396133,138.79,138.76,25.2233]
[1720721740458,7.54396133,138.79,138.76,18.0167]
[1720721740677,14.04,138.82,138.79,7.205]
[1720721740884,21.58231258,138.82,138.79,7.205]
[1720721741369,21.58231258,138.82,138.78,25.2191]
[1720721741567,21.58231258,138.82,138.79,7.205]
[1720721741874,7.54231258,138.82,138.79,7.205]
[1720721742976,14.8621755,138.84,138.8,19.44902117]
[1720721743277,8.36308905,138.84,138.82,32.0486]
[1720721743785,0.8221755,138.84,138.82,32.0486]
[1720721744485,0.8221755,138.84,138.83,15.47729978]
[1720721744690,0.8221755,138.84,138.83,67.68029978]
[1720721745891,0.8221755,138.84,138.83,45.0]
[1720721746069,0.8221755,138.84,138.82,25.212]
[1720721746481,0.8221755,138.84,138.81,0.34]
[1720721746679,0.8221755,138.84,138.81,52.2039]
[1720721746889,0.8221755,138.84,138.81,66.2439]
[1720721747586,0.8221755,138.84,138.82,7.2034]
[1720721748690,0.8221755,138.84,138.83,7.203]
[1720721749084,0.8221755,138.84,138.83,52.203]
[1720721749274,0.8221755,138.84,138.83,66.243]
[1720721750799,0.8221755,138.84,138.83,52.203]
[1720721750970,0.8221755,138.84,138.82,7.2034]
[1720721752395,0.8221755,138.84,138.81,39.2537]
[1720721752582,0.8221755,138.84,138.81,32.0498]
[1720721752973,0.8221755,138.84,138.82,7.2032]
[1720721754797,0.8221755,138.84,138.83,7.203]
[1720721759300,0.8221755,138.84,138.81,18.0098]
[1720721759507,14.8621755,138.84,138.81,25.2135]
[1720721759684,0.8221755,138.84,138.82,7.2034]
[1720721760103,0.8221755,138.84,138.83,7.203]
[1720721760791,0.8221755,138.84,138.81,18.0098]
[1720721761106,0.8221755,138.84,138.82,7.2032]
[1720721761593,0.8221755,138.84,138.83,7.203]
[1720721762000,14.8621755,138.84,138.81,18.0098]
[1720721762187,14.04,138.83,138.8,7.2042]
[1720721762382,14.04,138.82,138.8,7.2042]
[1720721763478,14.04,138.83,138.8,7.2042]
[1720721763688,14.8621755,138.84,138.82,7.2034]
[1720721764384,14.8621755,138.84,138.81,7.2039]
[1720721764588,0.8221755,138.84,138.82,7.2034]
[1720721764891,34.8621755,138.84,138.81,7.2038]
[1720721765803,42.40384484,138.84,138.8,18.0114]
[1720721766501,42.40384484,138.84,138.81,7.2037]
[1720721767717,42.40384484,138.84,138.82,7.2035]
[1720721767898,28.36384484,138.84,138.82,7.2035]
[1720721768101,28.36384484,138.84,138.81,7.2038]
[1720721769819,8.36384484,138.84,138.82,32.0488]
[1720721770031,0.8221755,138.84,138.83,7.203]
[1720721770521,0.8221755,138.84,138.82,39.2521]
[1720721772822,0.8221755,138.84,138.82,32.0488]
[1720721773123,0.8221755,138.84,138.82,14.04]
[1720721773517,0.8221755,138.84,138.81,21.2439]
[1720721773716,0.8221755,138.84,138.82,45.0]
[1720721773938,8.0246755,138.84,138.8,7.2045]
[1720721774106,7.2033,138.83,138.79,25.2165]
[1720721774312,7.2037,138.82,138.78,7.2055]
[1720721774613,21.2437,138.82,138.78,7.2055]
[1720721775022,21.2437,138.82,138.78,21.2455]
[1720721775230,7.2037,138.82,138.78,21.2455]
[1720721775830,21.2432,138.83,138.79,7.205]
[1720721776525,14.8621755,138.84,138.79,14.04]
[1720721776729,8.0248755,138.84,138.8,21.2445]
[1720721777826,0.8221755,138.84,138.82,7.2032]